bitfinex/quotes_ETHUSD_20250823
["timestamp","ask_amount","ask_price","bid_price","bid_amount"]
[1755939498543,0.001,4726.1,4725.9,0.4738]
[1755939498699,0.001,4726.1,4726.0,0.2891]
[1755939499133,0.001,4726.1,4726.0,0.7629]
[1755939507032,0.001,4726.1,4726.0,0.8685]
[1755939507220,0.001,4726.1,4726.0,0.1056]
[1755939507221,0.2905,4726.1,4726.0,0.1056]
[1755939507423,0.3961,4726.1,4725.8,0.02]
[1755939508827,0.4337,4726.0,4725.8,0.02]
[1755939509043,0.2895,4725.9,4725.8,0.02]
[1755939509452,0.7232,4725.9,4725.8,0.02]
[1755939516070,0.2895,4725.9,4725.8,0.02]
[1755939516271,0.7232,4725.9,4725.8,0.02]
[1755939517462,3.7232,4725.9,4725.8,0.02]
[1755939517637,4.17997487,4725.9,4725.8,0.02]
[1755939517840,1.17997487,4725.9,4725.8,0.02]
[1755939518072,0.7232,4725.9,4725.8,0.02]
[1755939518267,1.17997487,4725.9,4725.8,0.02]
[1755939518474,0.7232,4725.9,4725.8,0.02]
[1755939519285,0.807997,4725.9,4725.8,0.02]
[1755939519772,5.92399606,4725.9,4725.8,0.02]
[1755939519973,5.92399606,4725.9,4725.6,0.004]
[1755939519974,5.77608862,4725.7,4725.6,0.004]
[1755939520276,15.94462218,4725.7,4725.6,0.004]
[1755939520472,16.37832218,4725.7,4725.6,0.004]
[1755939520771,16.46313118,4725.7,4725.6,0.004]
[1755939521974,18.69313118,4725.7,4725.6,0.004]
[1755939522568,16.57704256,4725.7,4725.6,0.004]
[1755939522774,14.24144256,4725.7,4725.6,0.004]
[1755939522941,14.34704256,4725.7,4725.6,0.004]
[1755939523940,0.66,4725.5,4723.4,0.4738]
[1755939524140,12.60615869,4724.9,4724.1,0.4738]
[1755939524343,12.71175869,4724.9,4724.1,0.4738]
[1755939524561,13.18555869,4724.9,4724.1,0.4738]
[1755939525158,13.61925869,4724.9,4724.1,0.4738]
[1755939525358,13.61925869,4724.9,4722.8,0.1256]
[1755939525359,13.61925869,4724.9,4723.7,0.4738]
[1755939525783,13.18555869,4724.9,4724.1,0.4738]
[1755939526780,13.61925869,4724.9,4724.1,0.4738]
[1755939527275,13.61925869,4724.9,4722.8,0.1256]
[1755939527583,13.61925869,4724.9,4723.8,0.4938]
[1755939531496,16.39120559,4724.9,4723.8,0.02]
[1755939531779,18.62120559,4724.9,4723.8,0.02]
[1755939531985,18.62120559,4724.9,4723.8,0.024]
[1755939532181,15.41555869,4724.9,4723.8,0.024]
[1755939532382,15.41555869,4724.9,4724.5,0.4593]
[1755939532383,13.18555869,4724.9,4724.5,0.4593]
[1755939532883,13.18555869,4724.9,4724.2,0.4593]
[1755939536593,13.64125026,4724.9,4724.2,0.4593]
[1755939538161,13.64125026,4724.9,4723.9,0.4593]
[1755939538498,14.07045026,4724.9,4723.9,0.4593]
[1755939538694,16.61568611,4724.9,4723.9,0.4593]
[1755939538893,16.61568611,4724.9,4723.8,0.024]
[1755939539201,16.61568611,4724.9,4724.1,0.4593]
[1755939539382,17.04488611,4724.9,4724.1,0.4593]
[1755939540392,4.52258052,4724.9,4723.8,0.024]
[1755939540566,3.56129157,4724.9,4724.8,0.7888]
[1755939541096,3.64610157,4724.9,4724.8,0.024]
[1755939542204,3.64610157,4724.9,4724.8,0.3295]
[1755939542363,0.1056,4724.9,4724.8,0.7888]
[1755939545603,0.1056,4724.9,4724.8,0.024]
[1755939546191,0.1148,4724.9,4724.8,0.024]
[1755939546707,0.1056,4724.9,4724.8,0.024]
[1755939547074,0.30390172,4724.9,4724.8,0.024]
[1755939552209,3.30390172,4724.9,4724.8,0.024]
[1755939552411,3.76033356,4724.9,4724.8,0.024]
[1755939552585,3.76057761,4724.9,4724.8,0.3295]
[1755939552908,3.75957583,4724.9,4724.8,0.7888]
[1755939555686,3.56103184,4724.9,4724.8,0.7888]
[1755939555887,3.75959811,4724.9,4724.8,0.7888]
[1755939556111,3.75959811,4724.9,4724.8,0.3295]
[1755939556621,3.75959811,4724.9,4724.8,0.7888]
[1755939557082,3.56103184,4724.9,4724.8,0.7888]
[1755939565512,3.45543184,4724.9,4724.8,0.7888]
[1755939565710,0.1056,4724.9,4724.8,0.7888]
[1755939567412,0.1056,4724.9,4724.8,0.3295]
[1755939567912,0.1056,4724.9,4724.8,0.7595]
[1755939568857,0.1056,4724.9,4724.8,0.7508035]
[1755939569414,0.1056,4724.9,4724.8,0.3208035]
[1755939569655,0.3698,4724.9,4724.8,0.0153035]
[1755939571128,0.829,4724.9,4724.8,0.0153035]
[1755939572541,3.829,4724.9,4724.8,0.0153035]
[1755939572871,4.28610371,4724.9,4724.8,0.0153035]
[1755939574088,3.82690371,4724.9,4724.8,0.0153035]
[1755939576573,3.91171271,4724.9,4724.8,0.0153035]
[1755939577488,3.91171271,4724.9,4724.8,0.3013035]
[1755939577489,3.64751271,4724.9,4724.8,0.3013035]
[1755939577688,3.56270371,4724.9,4724.8,0.3013035]
[1755939577864,3.56270371,4724.9,4724.8,0.7313035]
[1755939578262,0.56270371,4724.9,4724.8,0.7313035]
[1755939578465,0.1056,4724.9,4724.8,0.7313035]
[1755939579404,0.1056,4724.9,4724.8,0.3013035]
[1755939579606,0.1056,4724.9,4724.8,0.7313035]
[1755939583107,0.001,4725.1,4724.8,0.7313035]
[1755939583306,0.1056,4724.9,4724.8,0.3013035]
[1755939583894,0.001,4725.1,4724.8,0.7313035]
[1755939584140,0.001,4725.4,4724.8,0.8369035]
[1755939584452,0.001,4725.4,4724.9,0.43]
[1755939584658,0.001,4725.4,4725.3,0.286]
[1755939585121,0.001,4725.4,4725.3,0.716]
[1755939588922,0.001,4725.4,4725.3,0.7334]
[1755939589125,0.1066,4725.4,4725.3,0.7334]
[1755939593054,0.001,4725.4,4725.3,0.7334]
[1755939597155,0.001,4725.4,4725.3,0.286]
[1755939597846,0.1066,4725.4,4725.3,0.286]
[1755939598375,0.1066,4725.4,4725.1,0.004]
[1755939598376,0.864,4725.4,4725.1,0.004]
[1755939598662,0.4615,4725.3,4725.1,0.004]
[1755939598880,0.2959,4725.2,4725.1,0.004]
[1755939600300,0.7574,4725.2,4725.1,0.004]
[1755939600672,0.2959,4725.2,4725.1,0.004]
[1755939602285,0.7574,4725.2,4725.1,0.004]
[1755939604806,0.2959,4725.2,4725.1,0.004]
[1755939605140,0.1066,4725.4,4725.1,0.004]
[1755939605277,0.1066,4725.4,4725.1,0.3037]
[1755939605826,0.001,4725.4,4725.1,0.3037]
[1755939606468,0.001,4725.4,4725.2,0.4474]
[1755939606718,0.001,4725.4,4725.3,0.2997]
[1755939607123,0.001,4725.4,4725.3,0.7471]
[1755939614663,0.001,4725.4,4725.3,1.4071]
[1755939614811,0.001,4725.4,4725.3,1.55877]
[1755939617667,0.001,4725.4,4725.3,3.17437866]
[1755939617874,0.001,4725.4,4725.3,6.17437866]
[1755939618012,0.001,4726.1,4726.0,12.97665869]
[1755939618212,0.001,4726.1,4726.0,14.57402456]
[1755939618457,0.001,4726.1,4726.0,15.15322456]
[1755939618824,0.001,4726.1,4726.0,16.67043307]
[1755939619932,0.001,4726.1,4726.0,16.75515607]
[1755939620525,0.001,4726.1,4726.0,15.23794756]
[1755939620721,0.001,4726.6,4726.1,3.66]
[1755939620952,0.001,4726.6,4726.3,3.9757]
[1755939621341,0.001,4726.6,4726.3,4.5549]
[1755939624045,0.001,4726.6,4726.3,0.8949]
[1755939624449,0.001,4726.6,4726.3,0.4213]
[1755939624955,0.001,4726.6,4726.3,0.8949]
[1755939625273,0.001,4726.6,4726.3,1.5549]
[1755939625471,0.001,4726.6,4726.3,1.7188623]
[1755939626041,0.3005,4726.4,4726.3,0.2695623]
[1755939626252,0.3005,4726.4,4726.3,0.1056]
[1755939627873,0.001,4726.4,4726.3,0.1056]
[1755939628371,0.001,4726.4,4726.3,0.4213]
[1755939628675,0.001,4726.4,4726.3,1.5549]
[1755939629191,0.001,4726.4,4726.3,1.639639]
[1755939629355,0.001,4726.4,4726.3,1.8036029]
[1755939631772,0.001,4726.4,4726.3,1.3300029]
[1755939632343,0.001,4726.4,4726.3,1.7188639]
[1755939632583,0.001,4726.4,4726.3,1.8035949]
[1755939636178,0.001,4726.4,4726.3,11.12025359]
[1755939636478,0.001,4726.4,4726.3,14.12025359]
[1755939641276,0.02,4726.8,4726.4,3.66]
[1755939641493,0.02,4726.8,4726.7,4.0813]
[1755939641879,0.02,4726.8,4726.7,4.5549]
[1755939642391,0.02,4726.8,4726.7,6.06779327]
[1755939642597,0.02,4726.8,4726.7,6.15250027]
[1755939642997,0.001,4727.6,4726.8,0.66]
[1755939643302,0.001,4727.6,4727.3,3.66]
[1755939643501,0.001,4729.1,4727.3,3.9757]
[1755939643665,0.001,4729.1,4727.7,0.1056]
[1755939643870,0.001,4729.1,4728.1,3.66]
[1755939644101,0.001,4729.1,4728.5,1.0813]
[1755939644402,0.001,4729.1,4728.5,4.0813]
[1755939644604,0.001,4729.1,4728.5,4.5549]
[1755939644902,0.3005,4728.6,4728.5,0.850288]
[1755939645102,0.3005,4728.6,4728.5,1.41442425]
[1755939645103,0.763,4728.6,4728.5,1.41442425]
[1755939645407,0.763,4728.6,4728.5,0.850288]
[1755939645408,0.3005,4728.6,4728.5,0.850288]
[1755939645803,0.3005,4728.6,4728.5,0.1056]
[1755939645979,0.763,4728.6,4728.5,0.1056]
[1755939646183,0.3005,4728.6,4728.5,0.1056]
[1755939646374,0.3005,4728.6,4728.5,0.22841]
[1755939647800,0.001,4728.6,4728.5,0.54411]
[1755939648307,0.3005,4728.6,4728.5,0.22841]
[1755939650207,0.7573,4728.6,4728.5,0.22841]
[1755939650671,0.3005,4728.6,4728.5,0.22841]
[1755939651288,0.7573,4728.6,4728.5,0.22841]
[1755939651488,0.7573,4728.6,4728.5,0.1056]
[1755939653213,0.3005,4728.6,4728.5,0.1056]
[1755939655905,0.2968,4728.6,4728.5,0.7656]
[1755939657073,0.7536,4728.6,4728.5,0.1056]
[1755939658576,0.2968,4728.6,4728.5,0.1056]
[1755939659425,0.7536,4728.6,4728.5,0.1056]
[1755939659897,0.7536,4728.6,4728.1,0.004]
[1755939660079,0.4568,4728.5,4728.1,0.004]
[1755939660281,0.2958,4728.2,4728.1,0.004]
[1755939660786,0.7526,4728.2,4728.1,0.004]
[1755939661098,0.2958,4728.2,4728.1,0.004]
[1755939661910,0.7526,4728.2,4728.1,0.004]
[1755939662914,0.2958,4728.2,4728.1,0.004]
[1755939664214,0.001,4728.6,4728.1,0.004]
[1755939664417,0.001,4728.6,4728.3,0.1056]
[1755939664713,0.2958,4728.4,4728.3,0.1056]
[1755939665286,0.7526,4728.4,4728.3,0.1056]
[1755939666412,0.7526,4728.4,4728.1,0.004]
[1755939666598,0.4568,4728.3,4728.1,0.004]
[1755939666775,0.2958,4728.2,4728.1,0.004]
[1755939666979,0.7526,4728.2,4728.1,0.004]
[1755939668098,0.8582,4728.2,4728.1,0.004]
[1755939674818,3.8582,4728.2,4728.1,0.004]
[1755939674994,0.8582,4728.2,4728.1,0.004]
[1755939682633,0.4014,4728.2,4728.1,0.004]
[1755939682824,0.1056,4728.2,4728.1,0.2956]
[1755939683204,0.1056,4728.2,4728.1,0.7408]
[1755939683917,0.1867,4728.2,4728.1,0.004]
[1755939684129,0.6301,4728.2,4728.1,0.004]
[1755939684508,1.374852,4728.2,4728.1,0.004]
[1755939684706,6.48982175,4728.2,4728.1,0.004]
[1755939685945,4.374852,4728.2,4728.1,0.004]
[1755939686360,6.48982175,4728.2,4728.1,0.004]
[1755939686868,8.71982175,4728.2,4728.1,0.004]
[1755939689830,6.604852,4728.2,4728.1,0.004]
[1755939690156,6.605852,4728.2,4728.1,0.004]
[1755939690765,6.609552,4728.2,4728.1,0.004]
[1755939690968,3.272452,4728.2,4728.1,0.004]
[1755939691133,3.272452,4728.2,4728.1,0.2956]
[1755939691134,3.191352,4728.2,4728.1,0.2956]
[1755939691334,0.191352,4728.2,4728.1,0.2956]
[1755939694759,0.191352,4728.2,4728.1,0.7408]
[1755939695067,0.191352,4728.2,4728.1,0.2956]
[1755939696340,0.191352,4728.2,4728.1,0.7408]
[1755939696769,0.191352,4728.2,4728.1,0.2956]
[1755939696970,0.1066,4728.2,4728.1,0.7408]
[1755939706872,0.1066,4728.2,4728.1,0.2956]
[1755939707049,0.1066,4728.2,4728.1,0.7408]
[1755939708479,0.001,4728.2,4728.1,0.7408]
[1755939708981,0.1066,4728.2,4728.1,0.2956]
[1755939709171,0.1066,4728.2,4728.1,0.7359]
[1755939711082,0.1066,4728.2,4728.1,0.2956]
[1755939711380,3.8441,4728.2,4728.1,0.004]
[1755939711584,3.9507,4728.2,4728.1,0.004]
[1755939711949,4.6107,4728.2,4728.1,0.004]
[1755939714655,8.95566975,4728.2,4728.1,0.004]
[1755939714980,6.8407,4728.2,4728.1,0.004]
[1755939715180,8.95566975,4728.2,4728.1,0.004]
[1755939715849,6.8407,4728.2,4728.1,0.004]
[1755939716053,8.95566975,4728.2,4728.1,0.004]
[1755939716665,6.8407,4728.2,4728.1,0.004]
[1755939716886,8.95566975,4728.2,4728.1,0.004]
[1755939718188,6.8407,4728.2,4728.1,0.004]
[1755939718358,4.6107,4728.2,4728.1,0.004]
[1755939718559,8.95566975,4728.2,4728.1,0.004]
[1755939719773,4.6107,4728.2,4728.1,0.004]
[1755939721076,6.72566975,4728.2,4728.1,0.004]
[1755939721297,4.6107,4728.2,4728.1,0.004]
[1755939721694,6.72566975,4728.2,4728.1,0.004]
[1755939722096,0.5198,4728.2,4728.1,0.004]
[1755939722301,12.93918412,4728.2,4728.1,0.004]
[1755939722598,13.59918412,4728.2,4728.1,0.004]
[1755939723391,15.71415387,4728.2,4728.1,0.004]
[1755939723707,2.11533123,4727.4,4727.1,0.004]
[1755939723907,12.29508412,4727.2,4727.1,0.004]
[1755939724109,12.40068412,4727.2,4727.1,0.004]
[1755939724314,12.84498412,4727.2,4727.1,0.004]
[1755939724478,13.27588412,4727.2,4727.1,0.004]
[1755939728206,12.84498412,4727.2,4727.1,0.004]
[1755939729016,12.84498412,4727.2,4725.8,0.02]
[1755939729017,3.503,4726.6,4721.8,0.4603]
[1755939729230,0.66,4724.7,4722.3,0.4403]
[1755939729424,0.66,4724.7,4721.8,0.02]
[1755939729425,0.66,4723.7,4721.8,0.02]
[1755939729576,3.0,4722.8,4721.8,0.02]
[1755939729776,12.29508412,4721.9,4721.8,0.02]
[1755939730019,12.29508412,4721.9,4719.8,0.02]
[1755939730020,3.0,4721.8,4720.6,0.4403]
[1755939730170,0.3066,4721.6,4720.6,0.4403]
[1755939730370,1.02559073,4721.6,4720.6,0.4403]
[1755939730570,4.45649073,4721.6,4720.2,0.4403]
[1755939730814,3.0,4721.5,4720.1,0.4403]
[1755939731034,2.89,4721.2,4720.1,0.4403]
[1755939731229,0.66,4720.7,4719.8,0.02]
[1755939731518,3.26748684,4721.8,4719.9,0.4403]
[1755939731689,0.26748684,4721.8,4720.6,0.2897]
[1755939731885,0.66,4721.7,4720.7,0.4403]
[1755939732202,0.66,4721.8,4720.7,0.4403]
[1755939732571,0.15648441,4721.8,4720.7,0.4403]
[1755939732779,3.4309,4723.4,4721.7,0.2897]
[1755939733074,0.4403,4722.4,4721.8,0.4403]
[1755939733280,0.4403,4722.4,4721.0,0.4403]
[1755939733514,0.59956251,4722.4,4721.0,0.4403]
[1755939733680,0.15926251,4722.4,4722.3,0.2897]
[1755939733873,0.33142028,4723.3,4720.5,0.004]
[1755939733874,0.4403,4722.3,4721.7,0.4403]
[1755939736867,0.3066,4721.8,4721.0,0.4403]
[1755939737359,0.8712,4722.3,4721.7,0.2897]
[1755939737360,0.4403,4722.3,4721.7,0.2897]
[1755939737519,0.16180956,4722.4,4721.8,0.4403]
[1755939737714,0.02,4722.8,4722.3,0.2897]
[1755939737946,0.4403,4722.6,4722.3,0.2897]
[1755939738146,0.02,4722.8,4722.4,0.4403]
[1755939738315,0.02,4722.8,4720.5,0.004]
[1755939738517,0.47425906,4722.8,4721.0,0.4464]
[1755939738755,1.1324,4722.7,4721.0,0.4464]
[1755939738935,1.1324,4722.7,4721.2,0.004]
[1755939739111,0.1056,4721.3,4721.2,0.004]
[1755939739315,0.1056,4721.3,4721.2,0.2914]
[1755939739519,0.1056,4721.3,4721.2,0.7378]
[1755939740948,0.1056,4721.6,4721.2,0.7378]
[1755939741146,0.1056,4721.6,4721.2,0.2914]
[1755939741330,0.1056,4721.6,4721.3,0.4464]
[1755939741534,0.1056,4721.6,4721.5,0.2874]
[1755939741914,0.1056,4721.6,4721.5,0.7338]
[1755939743217,0.1056,4721.6,4721.5,0.2874]
[1755939743555,0.1056,4721.6,4721.2,0.004]
[1755939743719,0.1056,4721.3,4721.2,0.004]
[1755939743920,0.1056,4721.3,4721.2,0.2914]
[1755939744453,0.1056,4721.3,4721.2,0.7378]
[1755939744747,0.1056,4721.3,4721.2,0.2914]
[1755939745923,0.1056,4721.3,4721.2,0.004]
[1755939746450,0.1056,4721.3,4721.2,0.2914]
[1755939746625,0.1056,4721.3,4721.2,0.7378]
[1755939748647,0.1056,4721.3,4721.2,0.004]
[1755939750016,0.1056,4721.3,4721.2,0.2914]
[1755939751022,0.1056,4721.3,4721.2,0.004]
[1755939751627,0.1056,4721.3,4721.2,0.2914]
[1755939754361,0.1056,4721.3,4721.2,0.004]
[1755939754739,0.1056,4721.3,4721.2,0.2914]
[1755939757429,0.4046,4721.3,4721.2,0.004]
[1755939757644,0.744,4721.3,4721.2,0.004]
[1755939758633,0.4046,4721.3,4721.2,0.004]
[1755939759838,0.744,4721.3,4721.2,0.004]
[1755939760039,0.1056,4721.3,4721.2,0.2914]
[1755939760239,0.1056,4721.3,4721.2,0.7378]
[1755939761072,0.001,4722.3,4721.2,0.7378]
[1755939761267,0.001,4722.3,4721.3,0.4464]
[1755939763168,0.001,4722.3,4722.2,0.2874]
[1755939763540,0.001,4722.3,4722.2,0.7338]
[1755939765542,0.001,4722.3,4722.2,0.221658]
[1755939766354,0.001,4722.3,4722.2,0.668058]
[1755939772566,0.001,4722.3,4722.2,0.773658]
[1755939774054,0.001,4722.3,4722.2,1.433658]
[1755939774256,0.001,4722.3,4722.2,1.5774238]
[1755939780498,0.001,4722.3,4722.2,0.9174238]
[1755939781295,0.001,4722.3,4722.2,1.5774238]
[1755939781699,0.001,4722.3,4722.2,0.4710238]
[1755939781874,0.001,4722.3,4722.2,0.327258]
[1755939782505,0.001,4722.3,4722.2,0.801158]
[1755939782868,0.001,4722.3,4722.2,1.355558]
[1755939783590,0.001,4722.3,4722.2,0.987258]
[1755939784169,0.001,4722.3,4722.2,0.1056]
[1755939784792,0.001,4722.3,4722.2,0.4027]
[1755939785591,0.001,4722.3,4722.2,1.431]
[1755939785790,0.001,4722.3,4722.2,1.5745]
[1755939788823,0.001,4722.3,4722.2,0.8035]
[1755939789014,0.001,4722.3,4722.2,0.66]
[1755939789404,0.001,4722.3,4722.2,0.9571]
[1755939790121,0.001,4722.3,4722.2,1.431]
[1755939790690,0.001,4722.3,4722.2,0.9571]
[1755939791908,0.001,4722.3,4722.2,0.66]
[1755939792290,0.001,4722.3,4722.2,1.07289]
[1755939792529,0.001,4722.3,4722.2,1.54679]
[1755939793308,0.001,4722.3,4722.2,1.07289]
[1755939793863,0.001,4722.3,4722.2,1.54679]
[1755939795808,0.001,4722.3,4722.2,1.65239]
[1755939796937,0.001,4722.3,4722.2,1.17849]
[1755939797524,0.001,4722.3,4722.2,1.65239]
[1755939799759,0.001,4722.3,4722.2,1.54679]
[1755939799937,0.001,4722.3,4722.2,1.65239]
[1755939801760,0.001,4722.3,4722.2,1.17849]
[1755939802062,0.3048,4722.3,4722.2,0.22139]
[1755939802215,0.7436,4722.3,4722.2,0.1904]
[1755939802612,0.7436,4722.3,4722.2,0.1056]
[1755939804342,0.7436,4722.3,4722.1,0.004]
[1755939804659,0.4388,4722.2,4722.1,0.004]
[1755939804828,0.7426,4722.2,4722.1,0.004]
[1755939810360,0.3038,4722.2,4722.1,0.004]
[1755939812669,0.7426,4722.2,4722.1,0.004]
[1755939813135,0.001,4722.3,4722.1,0.004]
[1755939813789,0.3038,4722.2,4722.1,0.004]
[1755939814996,0.001,4722.3,4722.1,0.3055]
[1755939815145,0.001,4722.3,4722.2,0.4495]
[1755939815344,0.001,4722.3,4722.2,0.8566]
[1755939816078,0.001,4722.3,4722.2,0.1056]
[1755939816374,0.001,4722.3,4722.2,0.4071]
[1755939816549,0.001,4722.3,4722.2,0.8566]
[1755939816952,0.001,4722.3,4722.2,1.5166]
[1755939817255,0.001,4722.3,4722.2,1.22116]
[1755939818491,0.001,4722.3,4722.2,1.67066]
[1755939821093,0.001,4722.3,4722.2,1.22116]
[1755939821293,0.001,4722.3,4722.2,0.91966]
[1755939821679,0.001,4722.3,4722.2,1.56506]
[1755939822210,0.001,4722.3,4722.2,1.649859]
[1755939827019,0.001,4722.3,4722.2,5.886859]
[1755939827393,0.001,4722.3,4722.2,1.649859]
[1755939828228,0.001,4722.3,4722.2,1.200359]
[1755939828728,0.001,4722.3,4722.2,1.671859]
[1755939828880,0.001,4722.3,4722.2,0.540359]
[1755939829076,0.001,4722.3,4722.2,0.744799]
[1755939829326,0.2971,4722.3,4722.2,0.744799]
[1755939829498,0.2971,4722.3,4722.1,0.004]
[1755939829681,0.728,4722.3,4722.1,0.004]
[1755939829878,0.4309,4722.2,4722.1,0.004]
[1755939830229,0.727,4722.2,4722.1,0.004]
[1755939831314,0.001,4722.3,4722.1,0.004]
[1755939831681,0.2961,4722.2,4722.1,0.004]
[1755939832535,0.2961,4722.2,4722.1,0.7696]
[1755939832893,0.2961,4722.2,4722.1,0.1096]
[1755939833091,0.727,4722.2,4722.1,0.1096]
[1755939834216,0.2961,4722.2,4722.1,0.1096]
[1755939834759,0.001,4722.3,4722.1,0.4089]
[1755939834967,0.001,4722.3,4722.2,0.76889]
[1755939835130,0.001,4722.3,4722.2,1.53969]
[1755939836028,0.2971,4722.3,4722.1,0.004]
[1755939836220,0.4309,4722.2,4722.1,0.004]
[1755939836415,0.727,4722.2,4722.1,0.004]
[1755939837830,0.2961,4722.2,4722.1,0.004]
[1755939838366,0.001,4722.3,4722.1,0.004]
[1755939838569,0.2961,4722.2,4722.1,0.004]
[1755939839131,0.001,4722.3,4722.1,0.3033]
[1755939839982,0.001,4722.3,4722.1,0.004]
[1755939840138,0.2961,4722.2,4722.1,0.004]
[1755939840538,0.727,4722.2,4722.1,0.004]
[1755939843499,0.2961,4722.2,4722.1,0.004]
[1755939844065,0.001,4722.3,4722.1,0.004]
[1755939845183,0.2961,4722.2,4722.1,0.004]
[1755939845862,0.727,4722.2,4722.1,0.004]
[1755939852812,0.2961,4722.2,4722.1,0.004]
[1755939853899,0.001,4722.3,4722.1,0.7748]
[1755939854223,0.001,4722.3,4722.1,0.4089]
[1755939854382,0.001,4722.3,4722.2,0.4715]
[1755939854581,0.001,4722.3,4722.2,0.7708]
[1755939855037,0.001,4722.3,4722.2,1.4308]
[1755939855197,0.001,4722.3,4722.2,1.69244]
[1755939860435,0.001,4722.3,4722.2,0.7656]
[1755939862319,0.1382,4722.3,4722.2,0.1056]
[1755939862525,0.5814,4722.3,4722.2,0.1056]
[1755939863022,0.687,4722.3,4722.1,0.004]
[1755939863223,0.4463,4722.2,4722.1,0.004]
[1755939863418,0.7518,4722.2,4722.1,0.004]
[1755939863723,1.0197625,4722.2,4722.1,0.004]
[1755939864059,0.7518,4722.2,4722.1,0.004]
[1755939865355,0.91319964,4722.2,4721.8,0.02]
[1755939865554,0.91319964,4722.2,4721.7,0.004]
[1755939865555,5.23,4721.8,4721.7,0.004]
[1755939865735,5.8034625,4721.8,4721.7,0.004]
[1755939865935,4.0197625,4721.8,4721.7,0.004]
[1755939866253,0.7518,4721.8,4721.7,0.004]
[1755939868958,0.3055,4721.8,4721.7,0.004]
[1755939869257,0.001,4722.3,4721.7,0.2979]
[1755939869460,0.3055,4721.8,4721.7,0.004]
[1755939869847,0.7518,4721.8,4721.7,0.004]
[1755939870861,0.3055,4721.8,4721.7,0.004]
[1755939871373,0.4463,4722.2,4721.7,0.004]
[1755939871579,0.001,4722.3,4721.7,0.2979]
[1755939874163,0.001,4722.3,4721.7,0.2479]
[1755939875486,0.1056,4722.1,4721.7,0.2479]
[1755939875983,0.1734,4721.8,4721.6,0.004]
[1755939876389,0.4436,4721.7,4721.6,0.004]
[1755939876682,0.7253,4721.7,4721.6,0.004]
[1755939877183,0.1056,4721.7,4721.6,0.2979]
[1755939877351,0.001,4722.3,4721.6,0.7374]
[1755939877557,0.1056,4722.0,4721.6,0.7374]
[1755939877760,0.1056,4722.0,4721.7,0.4395]
[1755939878087,0.1056,4722.0,4721.9,0.2939]
[1755939878964,0.001,4722.3,4721.9,0.2939]
[1755939879165,0.1056,4722.2,4722.0,0.4395]
[1755939879359,0.1056,4722.2,4722.1,0.2939]
[1755939880354,0.1056,4722.2,4721.6,0.5491]
[1755939880560,0.4111,4722.2,4721.6,0.1096]
[1755939882968,0.724,4722.2,4721.6,0.004]
[1755939883166,0.4111,4722.2,4721.6,0.004]
[1755939883490,0.1056,4721.7,4721.6,0.004]
[1755939883693,0.4111,4721.7,4721.6,0.004]
[1755939884192,0.724,4721.7,4721.6,0.004]
[1755939886416,3.0,4721.6,4721.1,0.004]
[1755939886704,0.3055,4721.3,4721.1,0.004]
[1755939887107,20.72842942,4721.3,4721.1,0.004]
[1755939887410,23.72842942,4721.3,4721.1,0.004]
[1755939889777,23.81330542,4721.3,4721.1,0.004]
[1755939892539,26.04330542,4721.3,4721.1,0.004]
[1755939893628,5.23,4721.2,4721.1,0.004]
[1755939893845,5.23,4721.0,4720.6,0.004]
[1755939894064,2.5363,4720.8,4720.6,0.004]
[1755939894201,5.5363,4720.8,4720.6,0.004]
[1755939894397,6.6382,4720.8,4720.6,0.004]
[1755939894719,6.723089,4720.8,4720.6,0.004]
[1755939897204,2.23,4720.7,4720.5,0.004]
[1755939897411,5.6419,4720.6,4720.5,0.004]
[1755939897611,2.23,4720.4,4718.8,0.4567]
[1755939897949,5.6419,4720.3,4718.8,0.4567]
[1755939898257,6.0838,4720.3,4718.8,0.4567]
[1755939898550,15.10856587,4720.3,4718.8,0.4567]
[1755939899025,15.10856587,4720.3,4719.2,0.4367]
[1755939899350,15.10856587,4720.3,4718.8,0.02]
[1755939899351,15.10856587,4720.3,4718.8,0.4567]
[1755939899545,0.1056,4719.9,4718.8,0.4567]
[1755939899749,0.4119,4719.9,4718.8,0.4567]
[1755939900529,0.8538,4719.9,4718.8,0.4567]
[1755939901156,6.24049056,4719.9,4718.8,0.02]
[1755939901320,3.0,4719.1,4718.8,0.02]
[1755939901651,0.1056,4718.9,4718.8,0.02]
[1755939902018,0.1056,4718.9,4718.8,0.7493]
[1755939902656,0.1056,4718.9,4718.8,0.7533]
[1755939903153,0.1056,4718.9,4718.8,0.3166]
[1755939907640,0.4119,4718.9,4718.8,0.024]
[1755939908158,0.1056,4718.9,4718.8,0.7533]
[1755939908867,0.1056,4718.9,4718.8,0.3166]
[1755939909783,0.4119,4718.9,4718.8,0.024]
[1755939909948,0.8538,4718.9,4718.8,0.024]
[1755939913750,0.4119,4718.9,4718.8,0.024]
[1755939913953,0.1056,4718.9,4718.8,0.7533]
[1755939914252,0.1056,4718.9,4718.8,0.3166]